[Event "*** Titled Tuesday Blitz"]
[Site "Chess.com"]
[Date "2020.02.04"]
[Round "4"]
[White "isla88"]
[Black "vlad_Sid"]
[Result "0-1"]
[WhiteElo "2323"]
[BlackElo "2698"]
[TimeControl "180+2"]
[EndTime "9:51:33 PST"]
[Termination "vlad_Sid won by resignation"]

1. c4 {[%clk 0:03:01.9]} 1... c5 {[%clk 0:02:59.8]} 2. Nf3 {[%clk 0:03:01.8]}
2... Nc6 {[%clk 0:02:58.8]} 3. Nc3 {[%clk 0:03:01.9]} 3... g6 {[%clk 0:02:58.2]}
4. e3 {[%clk 0:03:01]} 4... Bg7 {[%clk 0:02:58.8]} 5. d4 {[%clk 0:03:01.9]} 5...
cxd4 {[%clk 0:02:59.4]} 6. exd4 {[%clk 0:03:02.9]} 6... Nf6 {[%clk 0:03:00.5]}
7. d5 {[%clk 0:03:04.3]} 7... Nb8 {[%clk 0:03:00.5]} 8. Be2 {[%clk 0:03:00.3]}
8... O-O {[%clk 0:03:00.4]} 9. O-O {[%clk 0:03:00.3]} 9... d6 {[%clk 0:03:01.8]}
10. Bg5 {[%clk 0:02:53.6]} 10... Nbd7 {[%clk 0:03:02.6]} 11. Re1 {[%clk
0:02:49.8]} 11... Nc5 {[%clk 0:02:56.4]} 12. Rc1 {[%clk 0:02:31.2]} 12... Nfe4
{[%clk 0:02:48.2]} 13. Nxe4 {[%clk 0:02:01.3]} 13... Nxe4 {[%clk 0:02:50.1]} 14.
Qb3 {[%clk 0:01:45.9]} 14... Nxg5 {[%clk 0:02:41.6]} 15. Nxg5 {[%clk 0:01:47.8]}
15... Qb6 {[%clk 0:02:33.7]} 16. Rc2 {[%clk 0:01:05.8]} 16... Bf5 {[%clk
0:02:32.4]} 17. Rd2 {[%clk 0:01:03.9]} 17... Bh6 {[%clk 0:02:32.1]} 18. h4
{[%clk 0:00:47.3]} 18... f6 {[%clk 0:02:31.5]} 19. g4 {[%clk 0:00:43.9]} 19...
Bd7 {[%clk 0:01:49.7]} 20. Ne4 {[%clk 0:00:21]} 20... Bxd2 {[%clk 0:01:45.8]}
21. Nxd2 {[%clk 0:00:22.9]} 21... Qxb3 {[%clk 0:01:36.2]} 22. Nxb3 {[%clk
0:00:23.7]} 22... Kf7 {[%clk 0:01:29.4]} 23. Bf3 {[%clk 0:00:24.4]} 23... a6
{[%clk 0:01:28]} 24. Nd4 {[%clk 0:00:25.1]} 24... b5 {[%clk 0:01:25.3]} 25. c5
{[%clk 0:00:21.3]} 25... dxc5 {[%clk 0:01:18.8]} 26. d6 {[%clk 0:00:22.4]} 26...
e5 {[%clk 0:00:57.9]} 27. Bd5+ {[%clk 0:00:20.9]} 27... Kg7 {[%clk 0:00:57.7]}
28. Bxa8 {[%clk 0:00:21.5]} 28... Rxa8 {[%clk 0:00:59.6]} 29. Nb3 {[%clk
0:00:21]} 29... Rc8 {[%clk 0:00:52.8]} 30. Rc1 {[%clk 0:00:20.2]} 30... c4
{[%clk 0:00:49.1]} 31. Na5 {[%clk 0:00:19.8]} 31... Bxg4 {[%clk 0:00:46.6]} 32.
Kf1 {[%clk 0:00:20.5]} 32... Kf7 {[%clk 0:00:46.3]} 33. Ke1 {[%clk 0:00:20]}
33... Ke6 {[%clk 0:00:46.5]} 34. Nb7 {[%clk 0:00:19.9]} 34... Bf3 {[%clk
0:00:43]} 35. Na5 {[%clk 0:00:17.7]} 35... Kxd6 {[%clk 0:00:43.4]} 36. Rc3
{[%clk 0:00:19.3]} 36... e4 {[%clk 0:00:42.1]} 37. b3 {[%clk 0:00:18.5]} 37...
Kc5 {[%clk 0:00:38.9]} 38. bxc4 {[%clk 0:00:18.4]} 38... Kb4 {[%clk 0:00:38.8]}
39. Kd2 {[%clk 0:00:13.7]} 39... Kxa5 {[%clk 0:00:38.4]} 40. c5 {[%clk
0:00:12.7]} 40... b4 {[%clk 0:00:35.6]} 0-1

[Event "*** Titled Tuesday Blitz"]
[Site "Chess.com"]
[Date "2020.02.04"]
[Round "4"]
[White "iLuusions"]
[Black "pedromartinez91"]
[Result "0-1"]
[WhiteElo "2574"]
[BlackElo "2413"]
[TimeControl "180+2"]
[EndTime "9:51:48 PST"]
[Termination "pedromartinez91 won by resignation"]

1. d4 {[%clk 0:03:01]} 1... d5 {[%clk 0:01:37]} 2. c4 {[%clk 0:03:02.9]} 2...
Bf5 {[%clk 0:01:36.9]} 3. Nf3 {[%clk 0:03:02.8]} 3... e6 {[%clk 0:01:35]} 4. Nc3
{[%clk 0:02:54.6]} 4... Nc6 {[%clk 0:01:34.9]} 5. a3 {[%clk 0:02:46.2]} 5...
dxc4 {[%clk 0:01:30.3]} 6. e4 {[%clk 0:02:38.7]} 6... Bg4 {[%clk 0:01:30.4]} 7.
d5 {[%clk 0:02:36.7]} 7... exd5 {[%clk 0:01:29.6]} 8. exd5 {[%clk 0:02:36]} 8...
Ne5 {[%clk 0:01:24.3]} 9. Qe2 {[%clk 0:02:01.5]} 9... Bd6 {[%clk 0:01:20.6]} 10.
Bf4 {[%clk 0:01:57.1]} 10... Bxf3 {[%clk 0:01:20.3]} 11. gxf3 {[%clk 0:01:56.3]}
11... Qe7 {[%clk 0:01:20.9]} 12. Bxe5 {[%clk 0:01:56.4]} 12... Bxe5 {[%clk
0:01:09.9]} 13. O-O-O {[%clk 0:01:56.4]} 13... Bxc3 {[%clk 0:01:10.4]} 14. Qxe7+
{[%clk 0:01:56.4]} 14... Nxe7 {[%clk 0:01:07.1]} 15. bxc3 {[%clk 0:01:58.3]}
15... O-O-O {[%clk 0:01:06.8]} 16. Bxc4 {[%clk 0:01:57.6]} 16... Rd6 {[%clk
0:01:08.1]} 17. Bb3 {[%clk 0:01:55.2]} 17... Rf6 {[%clk 0:01:04.6]} 18. Rd3
{[%clk 0:01:48.6]} 18... Kd8 {[%clk 0:01:05.4]} 19. c4 {[%clk 0:01:41.8]} 19...
b6 {[%clk 0:01:05.7]} 20. Rhd1 {[%clk 0:01:35.1]} 20... Nc8 {[%clk 0:01:06]} 21.
Ba4 {[%clk 0:01:28.3]} 21... Nd6 {[%clk 0:01:04.2]} 22. Rc3 {[%clk 0:01:29.1]}
22... Rf4 {[%clk 0:01:03.8]} 23. Bb3 {[%clk 0:01:13.5]} 23... Re8 {[%clk
0:00:59.9]} 24. Kd2 {[%clk 0:01:14.5]} 24... Re5 {[%clk 0:00:56.5]} 25. Re1
{[%clk 0:01:03.3]} 25... Rxe1 {[%clk 0:00:53]} 26. Kxe1 {[%clk 0:01:05.2]} 26...
f6 {[%clk 0:00:53.2]} 27. Ke2 {[%clk 0:01:04.2]} 27... Nf7 {[%clk 0:00:54.3]}
28. c5 {[%clk 0:01:02.2]} 28... Ne5 {[%clk 0:00:52.8]} 29. Bc2 {[%clk
0:00:54.6]} 29... h5 {[%clk 0:00:52.4]} 30. Ke3 {[%clk 0:00:47.3]} 30... Rxf3+
{[%clk 0:00:52.5]} 31. Kd4 {[%clk 0:00:46]} 31... Rxc3 {[%clk 0:00:45]} 32. Kxc3
{[%clk 0:00:47.3]} 32... bxc5 {[%clk 0:00:46.9]} 33. f4 {[%clk 0:00:46.3]} 33...
Nf3 {[%clk 0:00:45]} 34. Bd1 {[%clk 0:00:45.4]} 34... Nxh2 {[%clk 0:00:44.1]}
35. Bxh5 {[%clk 0:00:46.5]} 35... Ke7 {[%clk 0:00:43.5]} 36. f5 {[%clk 0:00:39]}
36... Nf1 {[%clk 0:00:44.2]} 37. Kd3 {[%clk 0:00:37.7]} 37... Kd6 {[%clk
0:00:41.9]} 38. Bf7 {[%clk 0:00:35.3]} 38... Ke5 {[%clk 0:00:41.2]} 39. Be6
{[%clk 0:00:36.3]} 39... Ng3 {[%clk 0:00:41.7]} 40. Kc4 {[%clk 0:00:36.7]} 40...
Nxf5 {[%clk 0:00:41]} 41. Kxc5 {[%clk 0:00:37.6]} 41... Ne7 {[%clk 0:00:42]} 42.
Kb5 {[%clk 0:00:28.4]} 42... Nxd5 {[%clk 0:00:41.5]} 43. Bh3 {[%clk 0:00:27.9]}
43... f5 {[%clk 0:00:40.9]} 44. Kc6 {[%clk 0:00:29.4]} 44... f4 {[%clk
0:00:39.4]} 45. Bg2 {[%clk 0:00:30.8]} 45... Ne3 {[%clk 0:00:40.5]} 46. Bh1
{[%clk 0:00:30.7]} 46... g5 {[%clk 0:00:42.4]} 47. Kxc7 {[%clk 0:00:32.1]} 47...
g4 {[%clk 0:00:44.3]} 0-1

[Event "*** Titled Tuesday Blitz"]
[Site "Chess.com"]
[Date "2020.02.04"]
[Round "4"]
[White "GHANDEEVAM2003"]
[Black "Kimster98"]
[Result "1-0"]
[WhiteElo "2951"]
[BlackElo "2700"]
[TimeControl "180+2"]
[EndTime "9:51:49 PST"]
[Termination "GHANDEEVAM2003 won by resignation"]

1. Nf3 {[%clk 0:03:01.9]} 1... d5 {[%clk 0:03:00.8]} 2. c4 {[%clk 0:03:00.8]}
2... e6 {[%clk 0:03:01.4]} 3. b3 {[%clk 0:03:00.4]} 3... Nf6 {[%clk 0:02:58]} 4.
Bb2 {[%clk 0:03:01.2]} 4... Be7 {[%clk 0:02:50.3]} 5. g3 {[%clk 0:03:02]} 5...
O-O {[%clk 0:02:48.5]} 6. Bg2 {[%clk 0:03:03.3]} 6... c5 {[%clk 0:02:46.7]} 7.
O-O {[%clk 0:03:04.5]} 7... Nc6 {[%clk 0:02:46.4]} 8. e3 {[%clk 0:03:02.1]} 8...
b6 {[%clk 0:02:39.4]} 9. Nc3 {[%clk 0:02:54.1]} 9... Bb7 {[%clk 0:02:39.9]} 10.
cxd5 {[%clk 0:02:53.8]} 10... Nxd5 {[%clk 0:02:40.9]} 11. Nxd5 {[%clk
0:02:54.8]} 11... Qxd5 {[%clk 0:02:42.8]} 12. Ne5 {[%clk 0:02:55.7]} 12... Qd6
{[%clk 0:02:29.4]} 13. d4 {[%clk 0:02:55.3]} 13... cxd4 {[%clk 0:02:23.8]} 14.
Nxc6 {[%clk 0:02:42.2]} 14... Bxc6 {[%clk 0:02:23.1]} 15. Bxc6 {[%clk
0:02:44.1]} 15... Qxc6 {[%clk 0:02:25]} 16. Rc1 {[%clk 0:02:45.7]} 16... Qe4
{[%clk 0:02:07.1]} 17. Bxd4 {[%clk 0:02:18.7]} 17... e5 {[%clk 0:00:25.2]} 18.
Bb2 {[%clk 0:02:17.8]} 18... Rfd8 {[%clk 0:00:26.1]} 19. Qe2 {[%clk 0:02:18.2]}
19... Bf6 {[%clk 0:00:24]} 20. Rc4 {[%clk 0:02:09.3]} 20... Qd3 {[%clk
0:00:23.2]} 21. Qxd3 {[%clk 0:02:06.6]} 21... Rxd3 {[%clk 0:00:25.1]} 22. Rfc1
{[%clk 0:02:07.7]} 22... g6 {[%clk 0:00:24.4]} 23. R1c2 {[%clk 0:02:06.2]} 23...
Rad8 {[%clk 0:00:20.3]} 24. Bc3 {[%clk 0:02:03.2]} 24... Kg7 {[%clk 0:00:20.4]}
25. Kg2 {[%clk 0:01:59.6]} 25... h5 {[%clk 0:00:21.2]} 26. h4 {[%clk 0:01:59.8]}
26... R8d7 {[%clk 0:00:18.4]} 27. a4 {[%clk 0:01:58.9]} 27... Rb7 {[%clk
0:00:17.1]} 28. b4 {[%clk 0:01:45.6]} 28... b5 {[%clk 0:00:16.2]} 29. axb5
{[%clk 0:01:47.5]} 29... Rxb5 {[%clk 0:00:18.1]} 30. Ra2 {[%clk 0:01:48.7]}
30... Rb7 {[%clk 0:00:18]} 31. Ra6 {[%clk 0:01:50]} 31... Rd5 {[%clk 0:00:16.4]}
32. f4 {[%clk 0:01:45.2]} 32... Rdb5 {[%clk 0:00:09.5]} 33. Rcc6 {[%clk
0:01:42.5]} 33... R5b6 {[%clk 0:00:07.7]} 34. Rcxb6 {[%clk 0:01:43.7]} 34...
Rxb6 {[%clk 0:00:08.8]} 35. Rxb6 {[%clk 0:01:42.4]} 35... axb6 {[%clk
0:00:10.7]} 36. Bxe5 {[%clk 0:01:42.6]} 36... Bxe5 {[%clk 0:00:11.2]} 37. fxe5
{[%clk 0:01:44.5]} 37... Kf8 {[%clk 0:00:12.4]} 38. Kf3 {[%clk 0:01:45.6]} 38...
Ke7 {[%clk 0:00:11.6]} 39. Kf4 {[%clk 0:01:46.2]} 39... Kd7 {[%clk 0:00:11.4]}
40. Ke4 {[%clk 0:01:19.5]} 40... Kc6 {[%clk 0:00:11.7]} 41. Kd4 {[%clk
0:01:13.8]} 41... Kb5 {[%clk 0:00:12.6]} 42. Kc3 {[%clk 0:01:15.1]} 42... Ka4
{[%clk 0:00:14.1]} 43. Kc4 {[%clk 0:01:15.6]} 43... Ka3 {[%clk 0:00:15.5]} 44.
Kb5 {[%clk 0:01:08.5]} 44... Kb3 {[%clk 0:00:16.2]} 45. e4 {[%clk 0:00:56.9]}
45... Kc3 {[%clk 0:00:16]} 46. e6 {[%clk 0:00:58]} 46... fxe6 {[%clk 0:00:16.8]}
47. e5 {[%clk 0:00:59.5]} 47... Kb3 {[%clk 0:00:17.7]} 48. Kxb6 {[%clk
0:01:00.9]} 48... Kxb4 {[%clk 0:00:19.1]} 49. Kc6 {[%clk 0:01:02.5]} 49... Kc4
{[%clk 0:00:20.2]} 50. Kd6 {[%clk 0:01:04.4]} 50... Kd4 {[%clk 0:00:20.4]} 51.
Kxe6 {[%clk 0:01:06.3]} 51... Ke4 {[%clk 0:00:22]} 52. Kf6 {[%clk 0:01:08]} 1-0

[Event "*** Titled Tuesday Blitz"]
[Site "Chess.com"]
[Date "2020.02.04"]
[Round "4"]
[White "KhazarBabazada"]
[Black "GMHess"]
[Result "0-1"]
[WhiteElo "2932"]
[BlackElo "2774"]
[TimeControl "180+2"]
[EndTime "9:51:59 PST"]
[Termination "GMHess won by resignation"]

1. e4 {[%clk 0:02:40.9]} 1... d6 {[%clk 0:02:54.5]} 2. d4 {[%clk 0:02:38.9]}
2... Nf6 {[%clk 0:02:54.9]} 3. Nc3 {[%clk 0:02:39.6]} 3... c6 {[%clk 0:02:56.5]}
4. Nf3 {[%clk 0:02:40.4]} 4... Bg4 {[%clk 0:02:56.6]} 5. Be2 {[%clk 0:02:40.4]}
5... Nbd7 {[%clk 0:02:57]} 6. O-O {[%clk 0:02:37.4]} 6... e5 {[%clk 0:02:56.9]}
7. h3 {[%clk 0:02:24.9]} 7... Bh5 {[%clk 0:02:57.7]} 8. Be3 {[%clk 0:01:59.8]}
8... Be7 {[%clk 0:02:57.2]} 9. Qd2 {[%clk 0:01:58.1]} 9... O-O {[%clk 0:02:56]}
10. Rad1 {[%clk 0:01:56.6]} 10... Qc7 {[%clk 0:02:46.4]} 11. Nh2 {[%clk
0:01:24.6]} 11... Bg6 {[%clk 0:02:43.1]} 12. f3 {[%clk 0:01:00.8]} 12... Rfd8
{[%clk 0:02:11.1]} 13. Qe1 {[%clk 0:00:50.1]} 13... Nh5 {[%clk 0:01:38.8]} 14.
g3 {[%clk 0:00:41]} 14... exd4 {[%clk 0:01:30.8]} 15. Bxd4 {[%clk 0:00:40.6]}
15... d5 {[%clk 0:01:32.3]} 16. f4 {[%clk 0:00:22.6]} 16... dxe4 {[%clk
0:01:31.7]} 17. Qf2 {[%clk 0:00:21.4]} 17... f5 {[%clk 0:01:20.3]} 18. g4 {[%clk
0:00:15.3]} 18... Nhf6 {[%clk 0:00:50.3]} 19. g5 {[%clk 0:00:15.2]} 19... Ne8
{[%clk 0:00:31]} 20. h4 {[%clk 0:00:15.4]} 20... Nf8 {[%clk 0:00:23.4]} 21. h5
{[%clk 0:00:16]} 21... Bf7 {[%clk 0:00:25]} 22. h6 {[%clk 0:00:16.9]} 22... Ne6
{[%clk 0:00:23.6]} 23. Be3 {[%clk 0:00:17.1]} 23... b5 {[%clk 0:00:11.8]} 24.
hxg7 {[%clk 0:00:17.4]} 24... N8xg7 {[%clk 0:00:13.3]} 25. Kg2 {[%clk 0:00:16]}
25... b4 {[%clk 0:00:10]} 26. Nb1 {[%clk 0:00:17.4]} 26... c5 {[%clk 0:00:10.5]}
27. Rh1 {[%clk 0:00:17.3]} 27... Qc6 {[%clk 0:00:08.8]} 28. Nd2 {[%clk
0:00:18.3]} 28... Nd4 {[%clk 0:00:09.8]} 29. Bc4 {[%clk 0:00:17.4]} 29... Nge6
{[%clk 0:00:05.7]} 30. Nhf1 {[%clk 0:00:17.8]} 30... Nxc2 {[%clk 0:00:04.4]} 31.
Qh4 {[%clk 0:00:18.9]} 31... Bg6 {[%clk 0:00:04.5]} 32. Qf2 {[%clk 0:00:16.2]}
32... Nd4 {[%clk 0:00:05.4]} 33. Rh6 {[%clk 0:00:17]} 33... Bf8 {[%clk
0:00:06.2]} 34. Rh4 {[%clk 0:00:16.5]} 34... Bg7 {[%clk 0:00:07.3]} 35. Ng3
{[%clk 0:00:17.5]} 35... Rd6 {[%clk 0:00:07]} 36. Rdh1 {[%clk 0:00:18.5]} 36...
Rad8 {[%clk 0:00:07.5]} 37. Nh5 {[%clk 0:00:19.6]} 37... Nf3 {[%clk 0:00:08.1]}
38. Nxg7 {[%clk 0:00:19.9]} 38... Nxh4+ {[%clk 0:00:07.4]} 39. Qxh4 {[%clk
0:00:19.5]} 39... Rxd2+ {[%clk 0:00:08.4]} 40. Bxd2 {[%clk 0:00:20.7]} 40...
Rxd2+ {[%clk 0:00:10.3]} 41. Kf1 {[%clk 0:00:21.9]} 41... Kxg7 {[%clk
0:00:08.7]} 42. Qh6+ {[%clk 0:00:22.9]} 42... Kg8 {[%clk 0:00:10]} 0-1

[Event "*** Titled Tuesday Blitz"]
[Site "Chess.com"]
[Date "2020.02.04"]
[Round "4"]
[White "Hydrargyrum_Girl"]
[Black "Manukyan_Artak"]
[Result "1/2-1/2"]
[WhiteElo "2178"]
[BlackElo "2330"]
[TimeControl "180+2"]
[EndTime "9:52:00 PST"]
[Termination "Game drawn - insufficient material"]

1. d4 {[%clk 0:03:01.9]} 1... Nf6 {[%clk 0:03:00.1]} 2. Nc3 {[%clk 0:03:03]}
2... d5 {[%clk 0:03:00.5]} 3. Bg5 {[%clk 0:03:03.8]} 3... e6 {[%clk 0:02:59.3]}
4. e4 {[%clk 0:03:04.2]} 4... dxe4 {[%clk 0:03:00.4]} 5. Nxe4 {[%clk 0:03:06.1]}
5... Be7 {[%clk 0:03:01.7]} 6. Bxf6 {[%clk 0:03:07.7]} 6... gxf6 {[%clk
0:03:02.7]} 7. Nf3 {[%clk 0:03:04.8]} 7... f5 {[%clk 0:03:03.8]} 8. Nc3 {[%clk
0:03:05]} 8... h5 {[%clk 0:03:04.8]} 9. Ne5 {[%clk 0:03:04.6]} 9... Nd7 {[%clk
0:03:04.8]} 10. Nc4 {[%clk 0:02:58.9]} 10... b6 {[%clk 0:03:00.5]} 11. Be2
{[%clk 0:02:55.4]} 11... Bb7 {[%clk 0:02:56.7]} 12. Bf3 {[%clk 0:02:56.2]} 12...
c6 {[%clk 0:02:50.3]} 13. O-O {[%clk 0:02:53.9]} 13... Qc7 {[%clk 0:02:50.2]}
14. Re1 {[%clk 0:02:46.2]} 14... O-O-O {[%clk 0:02:50.8]} 15. a4 {[%clk
0:02:46.8]} 15... Nf6 {[%clk 0:02:37.5]} 16. Ne5 {[%clk 0:02:43.9]} 16... Bd6
{[%clk 0:02:37]} 17. Qe2 {[%clk 0:02:38.2]} 17... Ng4 {[%clk 0:02:34.7]} 18. h3
{[%clk 0:02:22.7]} 18... Nxe5 {[%clk 0:02:32.7]} 19. dxe5 {[%clk 0:02:24.6]}
19... Bb4 {[%clk 0:02:30.2]} 20. Red1 {[%clk 0:02:16.9]} 20... h4 {[%clk
0:02:23.3]} 21. Na2 {[%clk 0:02:09.9]} 21... Be7 {[%clk 0:02:22.4]} 22. b4
{[%clk 0:02:05.3]} 22... Rxd1+ {[%clk 0:02:20]} 23. Rxd1 {[%clk 0:02:05.4]}
23... Rd8 {[%clk 0:02:21.9]} 24. c4 {[%clk 0:02:03.4]} 24... Rxd1+ {[%clk
0:02:20.6]} 25. Qxd1 {[%clk 0:02:04.6]} 25... Qd8 {[%clk 0:02:22.2]} 26. Qxd8+
{[%clk 0:01:52.8]} 26... Kxd8 {[%clk 0:02:23.2]} 27. b5 {[%clk 0:01:51.9]} 27...
Kc7 {[%clk 0:02:23.4]} 28. Nc3 {[%clk 0:01:48.4]} 28... Bb4 {[%clk 0:02:16.3]}
29. Ne2 {[%clk 0:01:39.7]} 29... Bd2 {[%clk 0:02:11.1]} 30. Bh5 {[%clk 0:01:32]}
30... cxb5 {[%clk 0:02:11.8]} 31. cxb5 {[%clk 0:01:26.4]} 31... Bd5 {[%clk
0:02:08.7]} 32. Bxf7 {[%clk 0:01:24.8]} 32... Kd7 {[%clk 0:02:09.1]} 33. Nd4
{[%clk 0:01:21.3]} 33... Bc3 {[%clk 0:01:58.1]} 34. Nc6 {[%clk 0:01:17.6]} 34...
a5 {[%clk 0:01:50.6]} 35. g3 {[%clk 0:00:38.7]} 35... hxg3 {[%clk 0:01:46.1]}
36. fxg3 {[%clk 0:00:38.9]} 36... Bb3 {[%clk 0:01:46.6]} 37. h4 {[%clk
0:00:30.6]} 37... Bd2 {[%clk 0:01:43.4]} 38. Kf2 {[%clk 0:00:29.5]} 38... Bxa4
{[%clk 0:01:43.9]} 39. Nd4 {[%clk 0:00:24.2]} 39... f4 {[%clk 0:01:39.5]} 40.
Bxe6+ {[%clk 0:00:16]} 40... Ke7 {[%clk 0:01:39.1]} 41. gxf4 {[%clk 0:00:12.3]}
41... Bxf4 {[%clk 0:01:38.6]} 42. Bc4 {[%clk 0:00:08.6]} 42... Bxe5 {[%clk
0:01:34.5]} 43. Nc6+ {[%clk 0:00:09.4]} 43... Kf6 {[%clk 0:01:35.7]} 44. Nxe5
{[%clk 0:00:10.4]} 44... Kxe5 {[%clk 0:01:36.4]} 45. h5 {[%clk 0:00:11.5]} 45...
Kf6 {[%clk 0:01:37.5]} 46. Bd3 {[%clk 0:00:10.8]} 46... Kg5 {[%clk 0:01:35.1]}
47. Be2 {[%clk 0:00:06.8]} 47... Bc2 {[%clk 0:01:34.5]} 48. Ke3 {[%clk
0:00:07.9]} 48... Bb3 {[%clk 0:01:31.6]} 49. Kd4 {[%clk 0:00:08.8]} 49... Bf7
{[%clk 0:01:32.4]} 50. Ke5 {[%clk 0:00:03.2]} 50... a4 {[%clk 0:01:32]} 51. Bd3
{[%clk 0:00:03.9]} 51... a3 {[%clk 0:01:31.1]} 52. Bb1 {[%clk 0:00:05.1]} 52...
Bxh5 {[%clk 0:01:32.1]} 53. Ba2 {[%clk 0:00:05.6]} 53... Be2 {[%clk 0:01:30.5]}
54. Kd6 {[%clk 0:00:06.8]} 54... Bxb5 {[%clk 0:01:29.2]} 55. Kc7 {[%clk
0:00:07.4]} 55... Kf4 {[%clk 0:01:29.2]} 56. Kxb6 {[%clk 0:00:08.7]} 56... Bc4
{[%clk 0:01:28.4]} 57. Bxc4 {[%clk 0:00:08.5]} 57... Ke3 {[%clk 0:01:29.3]} 58.
Ka5 {[%clk 0:00:08.4]} 58... Kd4 {[%clk 0:01:30.2]} 59. Ka4 {[%clk 0:00:09.6]}
59... Kc3 {[%clk 0:01:32.1]} 60. Kxa3 {[%clk 0:00:10.8]} 1/2-1/2

[Event "*** Titled Tuesday Blitz"]
[Site "Chess.com"]
[Date "2020.02.04"]
[Round "4"]
[White "ChessLover0108"]
[Black "mortngabriel"]
[Result "1-0"]
[WhiteElo "2736"]
[BlackElo "2404"]
[TimeControl "180+2"]
[EndTime "9:52:04 PST"]
[Termination "ChessLover0108 won by resignation"]

1. d4 {[%clk 0:02:57.4]} 1... Nf6 {[%clk 0:03:00.7]} 2. c4 {[%clk 0:02:57.5]}
2... e6 {[%clk 0:03:01.9]} 3. Nf3 {[%clk 0:02:56]} 3... b6 {[%clk 0:03:02.5]} 4.
g3 {[%clk 0:02:56.9]} 4... Ba6 {[%clk 0:03:02.9]} 5. b3 {[%clk 0:02:57.8]} 5...
Bb4+ {[%clk 0:03:03.3]} 6. Bd2 {[%clk 0:02:58.3]} 6... Be7 {[%clk 0:03:04.7]} 7.
Bg2 {[%clk 0:02:59.9]} 7... d5 {[%clk 0:03:02.6]} 8. cxd5 {[%clk 0:03:00.4]}
8... exd5 {[%clk 0:03:02.3]} 9. Nc3 {[%clk 0:03:02.3]} 9... O-O {[%clk
0:03:02.6]} 10. O-O {[%clk 0:03:03.6]} 10... c5 {[%clk 0:03:03.1]} 11. Rc1
{[%clk 0:03:01.1]} 11... Nc6 {[%clk 0:03:03]} 12. Bg5 {[%clk 0:02:58.2]} 12...
Ne4 {[%clk 0:02:11.9]} 13. Bxe7 {[%clk 0:02:56]} 13... Nxe7 {[%clk 0:02:13.8]}
14. dxc5 {[%clk 0:02:56.8]} 14... bxc5 {[%clk 0:02:05.4]} 15. Nxe4 {[%clk
0:02:51.9]} 15... dxe4 {[%clk 0:02:07.3]} 16. Ng5 {[%clk 0:02:52.1]} 16... Nf5
{[%clk 0:00:44.4]} 17. Nxe4 {[%clk 0:02:41.5]} 17... Nd4 {[%clk 0:00:38.5]} 18.
Nc3 {[%clk 0:02:34]} 18... Rc8 {[%clk 0:00:37.1]} 19. Re1 {[%clk 0:02:33.7]}
19... Re8 {[%clk 0:00:26.5]} 20. e3 {[%clk 0:02:32.4]} 20... Ne6 {[%clk
0:00:23.7]} 21. Nd5 {[%clk 0:02:32.1]} 21... Bb7 {[%clk 0:00:18.9]} 22. Re2
{[%clk 0:02:32.9]} 22... Bxd5 {[%clk 0:00:18.3]} 23. Bxd5 {[%clk 0:02:34.8]}
23... Nc7 {[%clk 0:00:19.4]} 24. Rd2 {[%clk 0:02:34.4]} 24... Nxd5 {[%clk
0:00:20.3]} 25. Rxd5 {[%clk 0:02:36.3]} 25... Qe7 {[%clk 0:00:20.7]} 26. Qc2
{[%clk 0:02:36.4]} 26... h6 {[%clk 0:00:13.8]} 27. Rxc5 {[%clk 0:02:37]} 27...
Rxc5 {[%clk 0:00:13.8]} 28. Qxc5 {[%clk 0:02:38.9]} 28... Qd7 {[%clk 0:00:13.1]}
29. Qc6 {[%clk 0:02:37.3]} 29... Qe7 {[%clk 0:00:13.5]} 30. Rd1 {[%clk
0:02:35.2]} 30... Rf8 {[%clk 0:00:09.1]} 31. Qa4 {[%clk 0:02:31.4]} 31... Rc8
{[%clk 0:00:06.1]} 32. Qd7 {[%clk 0:02:23.9]} 32... Qc5 {[%clk 0:00:06.4]} 33.
h4 {[%clk 0:02:23]} 33... Rc7 {[%clk 0:00:07.4]} 34. Qe8+ {[%clk 0:02:23.4]}
34... Kh7 {[%clk 0:00:09.3]} 35. Rd8 {[%clk 0:02:24.1]} 35... Qc1+ {[%clk
0:00:08.4]} 36. Kg2 {[%clk 0:02:25.2]} 36... Qc2 {[%clk 0:00:10.3]} 37. h5
{[%clk 0:02:24.6]} 37... Qc6+ {[%clk 0:00:11]} 38. Qxc6 {[%clk 0:02:26.2]} 38...
Rxc6 {[%clk 0:00:12.9]} 39. Rd7 {[%clk 0:02:28.1]} 39... Ra6 {[%clk 0:00:14.2]}
40. Rxf7 {[%clk 0:02:28.8]} 40... Rxa2 {[%clk 0:00:15.1]} 41. Rb7 {[%clk
0:02:30.7]} 41... Rb2 {[%clk 0:00:15.7]} 42. Rxa7 {[%clk 0:02:31.7]} 42... Rxb3
{[%clk 0:00:17]} 43. g4 {[%clk 0:02:33.6]} 43... Kg8 {[%clk 0:00:18.3]} 44. Kg3
{[%clk 0:02:35]} 44... Rb4 {[%clk 0:00:19.4]} 45. Ra8+ {[%clk 0:02:36.1]} 45...
Kf7 {[%clk 0:00:20.4]} 46. Ra5 {[%clk 0:02:38]} 46... Kf6 {[%clk 0:00:22]} 47.
f4 {[%clk 0:02:38.3]} 47... Re4 {[%clk 0:00:22.5]} 48. Kf3 {[%clk 0:02:39.5]}
48... Rb4 {[%clk 0:00:24.4]} 49. Ra6+ {[%clk 0:02:40.6]} 49... Kf7 {[%clk
0:00:25.1]} 50. f5 {[%clk 0:02:39.8]} 50... Ke7 {[%clk 0:00:23.9]} 51. e4 {[%clk
0:02:40]} 51... Rb1 {[%clk 0:00:21.6]} 52. e5 {[%clk 0:02:41]} 52... Rb3+ {[%clk
0:00:22.1]} 53. Ke4 {[%clk 0:02:41.5]} 53... Rb4+ {[%clk 0:00:23.5]} 54. Kd5
{[%clk 0:02:42.9]} 54... Rxg4 {[%clk 0:00:24.6]} 55. Ra7+ {[%clk 0:02:43.9]}
55... Kf8 {[%clk 0:00:26]} 56. Ke6 {[%clk 0:02:45.4]} 56... Kg8 {[%clk
0:00:26.9]} 57. Ra8+ {[%clk 0:02:34.2]} 57... Kh7 {[%clk 0:00:27.2]} 58. Ra7
{[%clk 0:02:25.9]} 58... Kg8 {[%clk 0:00:27.7]} 59. Ke7 {[%clk 0:02:12]} 59...
Rf4 {[%clk 0:00:24.8]} 60. Ra8+ {[%clk 0:02:05.7]} 60... Kh7 {[%clk 0:00:25.6]}
61. e6 {[%clk 0:02:07.6]} 61... Rxf5 {[%clk 0:00:24.5]} 62. Kd6 {[%clk
0:02:08.9]} 62... Rf6 {[%clk 0:00:12.3]} 63. Ke5 {[%clk 0:02:09.6]} 63... Rf1
{[%clk 0:00:08.2]} 64. e7 {[%clk 0:02:10.3]} 64... Re1+ {[%clk 0:00:09.6]} 65.
Kd6 {[%clk 0:02:11.9]} 65... Rd1+ {[%clk 0:00:09.7]} 66. Kc5 {[%clk 0:02:13.5]}
66... Rc1+ {[%clk 0:00:08.3]} 67. Kb4 {[%clk 0:02:15]} 67... Rd1 {[%clk
0:00:10.2]} 68. Kc3 {[%clk 0:02:16.6]} 68... Re1 {[%clk 0:00:11]} 69. e8=Q
{[%clk 0:02:17.1]} 69... Rxe8 {[%clk 0:00:12.9]} 70. Rxe8 {[%clk 0:02:18.7]}
70... g6 {[%clk 0:00:14.4]} 71. Re7+ {[%clk 0:02:20]} 71... Kg8 {[%clk
0:00:15.6]} 72. hxg6 {[%clk 0:02:21.9]} 1-0